[Event "Titled Tuesday Blitz July 05 Late 2022"]
[White "Kopczynski, Michal"]
[Black "Doluhanova, Evgeniya"]
[WhiteFideId "1124200"]
[BlackFideId "14112035"]
[WhiteElo "2235"]
[BlackElo "2076"]
[Result "1-0"]
[Round "11"]
[TimeControl "180+1"]
[Date "2022.07.06"]
[WhiteClock "0:00:19"]
[BlackClock "0:00:14"]

1. e4 {[%clk 0:03:00]}  c5 {[%clk 0:02:57]} 2. d4 {[%clk 0:03:01]}  cxd4 {[%clk 0:02:54]} 3. c3 {[%clk 0:03:01]}  d3 {[%clk 0:02:53]} 4. Bxd3 {[%clk 0:03:01]}  g6 {[%clk 0:02:49]} 5. f4 {[%clk 0:03:01]}  Bg7 {[%clk 0:02:49]} 6. Nf3 {[%clk 0:03:02]}  Nc6 {[%clk 0:02:50]} 7. O-O {[%clk 0:03:02]}  d6 {[%clk 0:02:50]} 8. Qe1 {[%clk 0:03:03]}  Nf6 {[%clk 0:02:49]} 9. Kh1 {[%clk 0:03:03]}  O-O {[%clk 0:02:48]} 10. Be3 {[%clk 0:03:03]}  Bg4 {[%clk 0:02:47]} 11. Nbd2 {[%clk 0:03:03]}  a6 {[%clk 0:02:45]} 12. Qh4 {[%clk 0:03:03]}  Qd7 {[%clk 0:02:36]} 13. h3 {[%clk 0:02:57]}  Bxf3 {[%clk 0:02:32]} 14. Nxf3 {[%clk 0:02:58]}  Nh5 {[%clk 0:02:30]} 15. g4 {[%clk 0:02:47]}  Nf6 {[%clk 0:02:15]} 16. Rad1 {[%clk 0:02:42]}  h5 {[%clk 0:02:14]} 17. e5 {[%clk 0:02:21]}  Nd5 {[%clk 0:01:29]} 18. Bc1 {[%clk 0:01:30]}  dxe5 {[%clk 0:01:02]} 19. gxh5 {[%clk 0:01:20]}  Nxf4 {[%clk 0:00:47]} 20. Bxf4 {[%clk 0:01:14]}  exf4 {[%clk 0:00:47]} 21. hxg6 {[%clk 0:01:13]}  Rfd8 {[%clk 0:00:26]} 22. gxf7+ {[%clk 0:00:46]}  Kf8 {[%clk 0:00:26]} 23. Ng5 {[%clk 0:00:47]}  Qd5+ {[%clk 0:00:20]} 24. Be4 {[%clk 0:00:29]}  Qxd1 {[%clk 0:00:19]} 25. Rxd1 {[%clk 0:00:30]}  Rxd1+ {[%clk 0:00:18]} 26. Kg2 {[%clk 0:00:30]}  Rd2+ {[%clk 0:00:18]} 27. Kf1 {[%clk 0:00:28]}  Ne5 {[%clk 0:00:16]} 28. Qxf4 {[%clk 0:00:19]}  Rd1+ {[%clk 0:00:14]} 29. Ke2 {[%clk 0:00:19]} 1-0


[Site "https://www.chess.com"]

[Event "Titled Tuesday Blitz July 05 Late 2022"]
[White "Ladan, Nicholas"]
[Black "Martin Carmona, Gaston Manuel"]
[WhiteFideId "30918855"]
[BlackFideId "22284567"]
[WhiteElo "2167"]
[BlackElo "2162"]
[Result "1-0"]
[Round "11"]
[TimeControl "180+1"]
[Date "2022.07.06"]
[WhiteClock "0:00:51"]
[BlackClock "0:01:17"]

1. d4 {[%clk 0:03:00]}  Nf6 {[%clk 0:02:56]} 2. Nf3 {[%clk 0:03:00]}  g6 {[%clk 0:02:57]} 3. g3 {[%clk 0:03:00]}  Bg7 {[%clk 0:02:57]} 4. Bg2 {[%clk 0:03:01]}  O-O {[%clk 0:02:58]} 5. O-O {[%clk 0:03:01]}  d6 {[%clk 0:02:58]} 6. c4 {[%clk 0:03:02]}  Nc6 {[%clk 0:02:54]} 7. Nc3 {[%clk 0:03:02]}  e5 {[%clk 0:02:55]} 8. dxe5 {[%clk 0:02:59]}  dxe5 {[%clk 0:02:55]} 9. Qxd8 {[%clk 0:02:59]}  Rxd8 {[%clk 0:02:55]} 10. Bg5 {[%clk 0:02:59]}  Be6 {[%clk 0:02:56]} 11. Nd2 {[%clk 0:02:48]}  h6 {[%clk 0:02:56]} 12. Bxf6 {[%clk 0:02:47]}  Rxd2 {[%clk 0:02:57]} 13. Bxg7 {[%clk 0:02:42]}  Kxg7 {[%clk 0:02:58]} 14. b3 {[%clk 0:02:42]}  Nd4 {[%clk 0:02:35]} 15. Rfd1 {[%clk 0:02:26]}  Nxe2+ {[%clk 0:02:32]} 16. Nxe2 {[%clk 0:02:25]}  Rxe2 {[%clk 0:02:33]} 17. Bf3 {[%clk 0:02:18]}  Rb2 {[%clk 0:02:32]} 18. Bxb7 {[%clk 0:02:17]}  Rb8 {[%clk 0:02:32]} 19. Bd5 {[%clk 0:02:08]}  Kf6 {[%clk 0:02:32]} 20. Bxe6 {[%clk 0:02:05]}  Kxe6 {[%clk 0:02:33]} 21. Rd5 {[%clk 0:02:05]}  c6 {[%clk 0:02:31]} 22. Ra5 {[%clk 0:02:02]}  Rd8 {[%clk 0:02:29]} 23. Re1 {[%clk 0:01:58]}  f6 {[%clk 0:02:27]} 24. Ra6 {[%clk 0:01:54]}  Rdd2 {[%clk 0:02:27]} 25. Rxc6+ {[%clk 0:01:52]}  Kf5 {[%clk 0:02:27]} 26. g4+ {[%clk 0:01:44]}  Kg5 {[%clk 0:02:12]} 27. h4+ {[%clk 0:01:41]}  Kxh4 {[%clk 0:02:04]} 28. Rxf6 {[%clk 0:01:42]}  Rxa2 {[%clk 0:02:04]} 29. Rxe5 {[%clk 0:01:31]}  Kxg4 {[%clk 0:01:48]} 30. Rxg6+ {[%clk 0:01:12]}  Kf4 {[%clk 0:01:48]} 31. Re8 {[%clk 0:01:05]}  h5 {[%clk 0:01:40]} 32. Rf6+ {[%clk 0:01:02]}  Kg5 {[%clk 0:01:40]} 33. Rf3 {[%clk 0:01:00]}  a5 {[%clk 0:01:29]} 34. Rg8+ {[%clk 0:01:00]}  Kh6 {[%clk 0:01:23]} 35. Rfg3 {[%clk 0:00:56]}  Rxf2 {[%clk 0:01:17]} 36. Rh8# {[%clk 0:00:51]} 1-0


[Site "https://www.chess.com"]

[Event "Titled Tuesday Blitz July 05 Late 2022"]
[White "Lashkin, Jegor"]
[Black "Bilych, Olexiy"]
[WhiteFideId "13907808"]
[BlackFideId "14156504"]
[WhiteElo "2368"]
[BlackElo "2189"]
[Result "1-0"]
[Round "11"]
[TimeControl "180+1"]
[Date "2022.07.05"]
[WhiteClock "0:00:05"]
[BlackClock "0:00:03"]

1. d4 {[%clk 0:03:00]}  Nf6 {[%clk 0:03:00]} 2. c4 {[%clk 0:03:00]}  e6 {[%clk 0:03:00]} 3. Nf3 {[%clk 0:03:00]}  d5 {[%clk 0:03:00]} 4. Nc3 {[%clk 0:03:00]}  c5 {[%clk 0:03:01]} 5. cxd5 {[%clk 0:02:59]}  cxd4 {[%clk 0:03:01]} 6. Qxd4 {[%clk 0:02:59]}  exd5 {[%clk 0:03:01]} 7. Bg5 {[%clk 0:02:59]}  Be7 {[%clk 0:03:00]} 8. e3 {[%clk 0:02:59]}  O-O {[%clk 0:02:51]} 9. Be2 {[%clk 0:02:56]}  Be6 {[%clk 0:02:46]} 10. O-O {[%clk 0:02:56]}  Nc6 {[%clk 0:02:45]} 11. Qd3 {[%clk 0:02:55]}  h6 {[%clk 0:02:43]} 12. Bh4 {[%clk 0:02:55]}  Qb6 {[%clk 0:02:43]} 13. Bxf6 {[%clk 0:02:54]}  Bxf6 {[%clk 0:02:43]} 14. Nxd5 {[%clk 0:02:54]}  Bxd5 {[%clk 0:02:38]} 15. Qxd5 {[%clk 0:02:55]}  Qxb2 {[%clk 0:02:37]} 16. Bc4 {[%clk 0:02:55]}  Rad8 {[%clk 0:02:33]} 17. Qh5 {[%clk 0:02:42]}  b6 {[%clk 0:02:14]} 18. Rab1 {[%clk 0:02:35]}  Qa3 {[%clk 0:02:02]} 19. h4 {[%clk 0:02:10]}  Qd6 {[%clk 0:01:56]} 20. Rbd1 {[%clk 0:02:01]}  Qe7 {[%clk 0:01:33]} 21. g3 {[%clk 0:01:19]}  Rc8 {[%clk 0:01:17]} 22. Bd5 {[%clk 0:01:05]}  Ne5 {[%clk 0:01:12]} 23. Nd4 {[%clk 0:00:57]}  Rc5 {[%clk 0:00:38]} 24. e4 {[%clk 0:00:49]}  Kh7 {[%clk 0:00:25]} 25. Nf5 {[%clk 0:00:39]}  Qc7 {[%clk 0:00:24]} 26. Bb3 {[%clk 0:00:31]}  Nc4 {[%clk 0:00:20]} 27. Qf3 {[%clk 0:00:25]}  b5 {[%clk 0:00:13]} 28. Ne3 {[%clk 0:00:18]}  Nxe3 {[%clk 0:00:12]} 29. Qxe3 {[%clk 0:00:18]}  a5 {[%clk 0:00:11]} 30. Bd5 {[%clk 0:00:18]}  Rc3 {[%clk 0:00:10]} 31. Qe2 {[%clk 0:00:16]}  b4 {[%clk 0:00:10]} 32. Kg2 {[%clk 0:00:14]}  a4 {[%clk 0:00:09]} 33. Qb5 {[%clk 0:00:14]}  Rb8 {[%clk 0:00:09]} 34. Qxa4 {[%clk 0:00:13]}  Be5 {[%clk 0:00:08]} 35. f4 {[%clk 0:00:08]}  Rc2+ {[%clk 0:00:08]} 36. Rf2 {[%clk 0:00:06]}  Rxf2+ {[%clk 0:00:08]} 37. Kxf2 {[%clk 0:00:07]}  Qc5+ {[%clk 0:00:07]} 38. Kg2 {[%clk 0:00:05]}  Bc3 {[%clk 0:00:07]} 39. Qc2 {[%clk 0:00:04]}  Kg8 {[%clk 0:00:04]} 40. Qe2 {[%clk 0:00:04]}  Re8 {[%clk 0:00:03]} 41. Qh5 {[%clk 0:00:03]}  Re7 {[%clk 0:00:03]} 42. Qg4 {[%clk 0:00:03]}  Qd6 {[%clk 0:00:03]} 43. Qf3 {[%clk 0:00:04]}  g6 {[%clk 0:00:03]} 44. Bxf7+ {[%clk 0:00:04]}  Kxf7 {[%clk 0:00:03]} 45. Rxd6 {[%clk 0:00:05]} 1-0


[Site "https://www.chess.com"]

[Event "Titled Tuesday Blitz July 05 Late 2022"]
[White "Leiva, Gianmarco"]
[Black "Pakleza, Zbigniew"]
[WhiteFideId "3804399"]
[BlackFideId "1119290"]
[WhiteElo "2323"]
[BlackElo "2467"]
[Result "0-1"]
[Round "11"]
[TimeControl "180+1"]
[Date "2022.07.05"]
[WhiteClock "0:00:13"]
[BlackClock "0:00:13"]

1. e4 {[%clk 0:02:59]}  d6 {[%clk 0:02:59]} 2. Nf3 {[%clk 0:02:55]}  Nf6 {[%clk 0:02:59]} 3. Nc3 {[%clk 0:02:55]}  Bg4 {[%clk 0:02:58]} 4. d4 {[%clk 0:02:54]}  e6 {[%clk 0:02:58]} 5. Be2 {[%clk 0:02:52]}  Be7 {[%clk 0:02:58]} 6. Be3 {[%clk 0:02:52]}  d5 {[%clk 0:02:57]} 7. e5 {[%clk 0:02:45]}  Nfd7 {[%clk 0:02:58]} 8. Nd2 {[%clk 0:02:22]}  Bxe2 {[%clk 0:02:57]} 9. Nxe2 {[%clk 0:02:23]}  c5 {[%clk 0:02:57]} 10. c3 {[%clk 0:02:23]}  Nc6 {[%clk 0:02:58]} 11. O-O {[%clk 0:02:09]}  O-O {[%clk 0:02:58]} 12. Nf3 {[%clk 0:01:56]}  Qb6 {[%clk 0:02:56]} 13. Rb1 {[%clk 0:01:44]}  Rfc8 {[%clk 0:02:54]} 14. dxc5 {[%clk 0:01:39]}  Bxc5 {[%clk 0:02:52]} 15. Bd4 {[%clk 0:01:28]}  Qc7 {[%clk 0:02:16]} 16. Nf4 {[%clk 0:01:05]}  Ncxe5 {[%clk 0:01:57]} 17. Nxe5 {[%clk 0:00:51]}  Nxe5 {[%clk 0:01:58]} 18. Nh5 {[%clk 0:00:30]}  Bf8 {[%clk 0:01:10]} 19. f4 {[%clk 0:00:30]}  Nc6 {[%clk 0:01:10]} 20. f5 {[%clk 0:00:19]}  Nxd4 {[%clk 0:01:08]} 21. cxd4 {[%clk 0:00:20]}  exf5 {[%clk 0:00:54]} 22. Rxf5 {[%clk 0:00:20]}  Qc2 {[%clk 0:00:45]} 23. Rxd5 {[%clk 0:00:14]}  Qc4 {[%clk 0:00:24]} 24. Rg5 {[%clk 0:00:11]}  Rc6 {[%clk 0:00:17]} 25. Qg4 {[%clk 0:00:03]}  Rg6 {[%clk 0:00:16]} 26. Rxg6 {[%clk 0:00:02]}  hxg6 {[%clk 0:00:17]} 27. Ng3 {[%clk 0:00:02]}  Qxa2 {[%clk 0:00:16]} 28. Rf1 {[%clk 0:00:01]}  Rd8 {[%clk 0:00:15]} 29. Qf3 {[%clk 0:00:02]}  Qd5 {[%clk 0:00:14]} 30. Qxd5 {[%clk 0:00:01]}  Rxd5 {[%clk 0:00:15]} 31. Ne2 {[%clk 0:00:02]}  a5 {[%clk 0:00:12]} 32. Rc1 {[%clk 0:00:02]}  Rd8 {[%clk 0:00:07]} 33. Kf2 {[%clk 0:00:02]}  Bd6 {[%clk 0:00:06]} 34. Ke3 {[%clk 0:00:02]}  Kf8 {[%clk 0:00:07]} 35. Kd3 {[%clk 0:00:03]}  Ke7 {[%clk 0:00:06]} 36. h3 {[%clk 0:00:03]}  Kd7 {[%clk 0:00:06]} 37. Nc3 {[%clk 0:00:03]}  Re8 {[%clk 0:00:06]} 38. Ne4 {[%clk 0:00:03]}  Be7 {[%clk 0:00:06]} 39. Rf1 {[%clk 0:00:02]}  f6 {[%clk 0:00:06]} 40. Nc3 {[%clk 0:00:03]}  Bb4 {[%clk 0:00:06]} 41. Nd5 {[%clk 0:00:03]}  Bd6 {[%clk 0:00:06]} 42. Ra1 {[%clk 0:00:04]}  Bc7 {[%clk 0:00:03]} 43. Nxc7 {[%clk 0:00:03]}  Kxc7 {[%clk 0:00:04]} 44. Rxa5 {[%clk 0:00:03]}  Re1 {[%clk 0:00:04]} 45. Rc5+ {[%clk 0:00:04]}  Kd6 {[%clk 0:00:04]} 46. Rb5 {[%clk 0:00:04]}  Kc6 {[%clk 0:00:05]} 47. Rc5+ {[%clk 0:00:05]}  Kb6 {[%clk 0:00:05]} 48. Rd5 {[%clk 0:00:03]}  Rg1 {[%clk 0:00:05]} 49. Rd7 {[%clk 0:00:03]}  Rxg2 {[%clk 0:00:06]} 50. Rxg7 {[%clk 0:00:04]}  g5 {[%clk 0:00:07]} 51. b4 {[%clk 0:00:04]}  Rg3+ {[%clk 0:00:07]} 52. Ke4 {[%clk 0:00:04]}  Rxh3 {[%clk 0:00:07]} 53. Rg6 {[%clk 0:00:04]}  Kb5 {[%clk 0:00:07]} 54. Rxf6 {[%clk 0:00:04]}  g4 {[%clk 0:00:08]} 55. Kf4 {[%clk 0:00:03]}  Rd3 {[%clk 0:00:07]} 56. Kxg4 {[%clk 0:00:02]}  Rxd4+ {[%clk 0:00:08]} 57. Kf5 {[%clk 0:00:03]}  Rxb4 {[%clk 0:00:06]} 58. Ke5 {[%clk 0:00:03]}  Rc4 {[%clk 0:00:06]} 59. Kd5 {[%clk 0:00:03]}  Rc1 {[%clk 0:00:05]} 60. Rf2 {[%clk 0:00:03]}  Rd1+ {[%clk 0:00:04]} 61. Ke4 {[%clk 0:00:03]}  b6 {[%clk 0:00:04]} 62. Ke3 {[%clk 0:00:02]}  Ka5 {[%clk 0:00:03]} 63. Ra2+ {[%clk 0:00:02]}  Kb4 {[%clk 0:00:03]} 64. Ke2 {[%clk 0:00:02]}  Rd6 {[%clk 0:00:03]} 65. Rb2+ {[%clk 0:00:03]}  Ka3 {[%clk 0:00:03]} 66. Rb5 {[%clk 0:00:03]}  Ka4 {[%clk 0:00:04]} 67. Rb1 {[%clk 0:00:03]}  b5 {[%clk 0:00:04]} 68. Ra1+ {[%clk 0:00:04]}  Kb4 {[%clk 0:00:05]} 69. Rc1 {[%clk 0:00:04]}  Ka4 {[%clk 0:00:05]} 70. Rb1 {[%clk 0:00:05]}  b4 {[%clk 0:00:05]} 71. Rd1 {[%clk 0:00:06]}  Rxd1 {[%clk 0:00:04]} 72. Kxd1 {[%clk 0:00:07]}  Kb3 {[%clk 0:00:05]} 73. Kc1 {[%clk 0:00:08]}  Ka2 {[%clk 0:00:06]} 74. Kd2 {[%clk 0:00:08]}  b3 {[%clk 0:00:07]} 75. Kc3 {[%clk 0:00:09]}  b2 {[%clk 0:00:08]} 76. Kc4 {[%clk 0:00:09]}  b1=Q {[%clk 0:00:08]} 77. Kd5 {[%clk 0:00:09]}  Qb3+ {[%clk 0:00:09]} 78. Kd6 {[%clk 0:00:10]}  Ka3 {[%clk 0:00:10]} 79. Ke7 {[%clk 0:00:10]}  Qb4+ {[%clk 0:00:11]} 80. Kf7 {[%clk 0:00:10]}  Qb6 {[%clk 0:00:11]} 81. Kg7 {[%clk 0:00:11]}  Kb4 {[%clk 0:00:12]} 82. Kh8 {[%clk 0:00:12]}  Kc5 {[%clk 0:00:13]} 83. Kg8 {[%clk 0:00:13]}  Qc7 {[%clk 0:00:13]} 0-1


[Site "https://www.chess.com"]

[Event "Titled Tuesday Blitz July 05 Late 2022"]
[White "Maghsoodloo, Parham"]
[Black "Halkias, Stelios"]
[WhiteFideId "12539929"]
[BlackFideId "4201809"]
[WhiteElo "2607"]
[BlackElo "2453"]
[Result "0-1"]
[Round "11"]
[TimeControl "180+1"]
[Date "2022.07.05"]
[WhiteClock "0:00:23"]
[BlackClock "0:00:22"]

1. e4 {[%clk 0:03:00]}  c5 {[%clk 0:02:58]} 2. d4 {[%clk 0:03:00]}  cxd4 {[%clk 0:02:58]} 3. c3 {[%clk 0:03:01]}  dxc3 {[%clk 0:02:58]} 4. Nxc3 {[%clk 0:03:02]}  e6 {[%clk 0:02:58]} 5. Nf3 {[%clk 0:03:01]}  Nc6 {[%clk 0:02:59]} 6. Bb5 {[%clk 0:03:02]}  Bb4 {[%clk 0:02:58]} 7. O-O {[%clk 0:03:02]}  Nge7 {[%clk 0:02:59]} 8. Qe2 {[%clk 0:03:02]}  O-O {[%clk 0:02:58]} 9. Rd1 {[%clk 0:03:02]}  d5 {[%clk 0:02:55]} 10. Bf4 {[%clk 0:02:57]}  Bxc3 {[%clk 0:02:52]} 11. bxc3 {[%clk 0:02:57]}  Qa5 {[%clk 0:02:52]} 12. Bd6 {[%clk 0:02:56]}  Rd8 {[%clk 0:02:51]} 13. e5 {[%clk 0:02:52]}  Nf5 {[%clk 0:02:49]} 14. Bc5 {[%clk 0:02:49]}  a6 {[%clk 0:02:44]} 15. Bxc6 {[%clk 0:02:49]}  bxc6 {[%clk 0:02:45]} 16. Bb4 {[%clk 0:02:45]}  Qc7 {[%clk 0:02:42]} 17. g4 {[%clk 0:02:41]}  Ne7 {[%clk 0:02:38]} 18. Bc5 {[%clk 0:02:39]}  Ng6 {[%clk 0:02:36]} 19. Qe3 {[%clk 0:02:37]}  a5 {[%clk 0:02:28]} 20. h4 {[%clk 0:02:37]}  f6 {[%clk 0:02:24]} 21. Bb6 {[%clk 0:02:35]}  Qe7 {[%clk 0:02:17]} 22. h5 {[%clk 0:02:35]}  Nxe5 {[%clk 0:01:53]} 23. Nxe5 {[%clk 0:02:35]}  fxe5 {[%clk 0:01:53]} 24. Bxd8 {[%clk 0:02:36]}  Qxd8 {[%clk 0:01:54]} 25. Qxe5 {[%clk 0:02:36]}  Qh4 {[%clk 0:01:54]} 26. Rd4 {[%clk 0:02:36]}  Qf6 {[%clk 0:01:45]} 27. Qc7 {[%clk 0:02:15]}  e5 {[%clk 0:01:42]} 28. Re1 {[%clk 0:02:14]}  e4 {[%clk 0:01:34]} 29. Rexe4 {[%clk 0:02:14]}  Ba6 {[%clk 0:01:11]} 30. Rf4 {[%clk 0:02:06]}  Qe6 {[%clk 0:01:09]} 31. Rf7 {[%clk 0:02:05]}  Qxf7 {[%clk 0:01:06]} 32. Qxc6 {[%clk 0:02:03]}  Bb7 {[%clk 0:01:05]} 33. Qd6 {[%clk 0:01:50]}  Re8 {[%clk 0:00:57]} 34. Rf4 {[%clk 0:01:49]}  Qe7 {[%clk 0:00:53]} 35. Qb6 {[%clk 0:01:46]}  d4 {[%clk 0:00:50]} 36. Qxd4 {[%clk 0:00:36]}  Qe1+ {[%clk 0:00:45]} 37. Kh2 {[%clk 0:00:37]}  Qh1+ {[%clk 0:00:39]} 38. Kg3 {[%clk 0:00:37]}  Qg2+ {[%clk 0:00:36]} 39. Kh4 {[%clk 0:00:37]}  h6 {[%clk 0:00:26]} 40. Qc4+ {[%clk 0:00:29]}  Kh8 {[%clk 0:00:24]} 41. Qd3 {[%clk 0:00:23]}  Qh2+ {[%clk 0:00:22]} 42. Qh3 {[%clk 0:00:23]}  Qxf4 {[%clk 0:00:22]} 0-1


[Site "https://www.chess.com"]

[Event "Titled Tuesday Blitz July 05 Late 2022"]
[White "Makarian, Rudik"]
[Black "Ibarra Jerez, Jose Carlos"]
[WhiteFideId "44105681"]
[BlackFideId "2226332"]
[WhiteElo "2403"]
[BlackElo "2628"]
[Result "0-1"]
[Round "11"]
[TimeControl "180+1"]
[Date "2022.07.05"]
[WhiteClock "0:00:07"]
[BlackClock "0:00:11"]

1. d4 {[%clk 0:03:00]}  Nf6 {[%clk 0:02:59]} 2. Bg5 {[%clk 0:03:00]}  d5 {[%clk 0:02:58]} 3. Bxf6 {[%clk 0:03:00]}  gxf6 {[%clk 0:02:58]} 4. e3 {[%clk 0:03:00]}  c5 {[%clk 0:02:58]} 5. dxc5 {[%clk 0:03:00]}  e6 {[%clk 0:02:58]} 6. Nf3 {[%clk 0:02:56]}  Bxc5 {[%clk 0:02:58]} 7. Nbd2 {[%clk 0:02:56]}  f5 {[%clk 0:02:55]} 8. Bd3 {[%clk 0:02:52]}  O-O {[%clk 0:02:55]} 9. O-O {[%clk 0:02:46]}  Qf6 {[%clk 0:02:54]} 10. c3 {[%clk 0:02:45]}  Nc6 {[%clk 0:02:54]} 11. Nd4 {[%clk 0:02:40]}  e5 {[%clk 0:02:47]} 12. N4b3 {[%clk 0:02:33]}  Bb6 {[%clk 0:02:47]} 13. c4 {[%clk 0:02:32]}  Be6 {[%clk 0:02:33]} 14. cxd5 {[%clk 0:02:31]}  Bxd5 {[%clk 0:02:32]} 15. e4 {[%clk 0:02:31]}  fxe4 {[%clk 0:02:28]} 16. Nxe4 {[%clk 0:02:30]}  Qg7 {[%clk 0:02:11]} 17. Ng3 {[%clk 0:02:23]}  Rad8 {[%clk 0:02:04]} 18. Qb1 {[%clk 0:01:55]}  Ne7 {[%clk 0:01:39]} 19. Be4 {[%clk 0:01:47]}  f5 {[%clk 0:01:34]} 20. Bxd5+ {[%clk 0:01:41]}  Rxd5 {[%clk 0:01:35]} 21. a4 {[%clk 0:01:38]}  a5 {[%clk 0:01:21]} 22. Qc2 {[%clk 0:01:33]}  Qg4 {[%clk 0:01:13]} 23. Rad1 {[%clk 0:01:21]}  Rxd1 {[%clk 0:00:55]} 24. Rxd1 {[%clk 0:01:22]}  Rc8 {[%clk 0:00:37]} 25. Qd3 {[%clk 0:01:11]}  Rd8 {[%clk 0:00:32]} 26. Qxd8+ {[%clk 0:01:03]}  Bxd8 {[%clk 0:00:33]} 27. Rxd8+ {[%clk 0:01:03]}  Kf7 {[%clk 0:00:33]} 28. h3 {[%clk 0:00:57]}  Qxa4 {[%clk 0:00:32]} 29. Nc5 {[%clk 0:00:56]}  Qa1+ {[%clk 0:00:32]} 30. Kh2 {[%clk 0:00:57]}  Qxb2 {[%clk 0:00:29]} 31. Nd3 {[%clk 0:00:57]}  Qc3 {[%clk 0:00:28]} 32. Ne2 {[%clk 0:00:48]}  Qc7 {[%clk 0:00:27]} 33. Rd7 {[%clk 0:00:45]}  Qxd7 {[%clk 0:00:20]} 34. Nxe5+ {[%clk 0:00:46]}  Ke6 {[%clk 0:00:20]} 35. Nxd7 {[%clk 0:00:46]}  Kxd7 {[%clk 0:00:21]} 36. g4 {[%clk 0:00:43]}  b5 {[%clk 0:00:17]} 37. g5 {[%clk 0:00:33]}  b4 {[%clk 0:00:18]} 38. h4 {[%clk 0:00:33]}  a4 {[%clk 0:00:18]} 39. h5 {[%clk 0:00:33]}  b3 {[%clk 0:00:18]} 40. g6 {[%clk 0:00:32]}  h6 {[%clk 0:00:16]} 41. g7 {[%clk 0:00:09]}  a3 {[%clk 0:00:15]} 42. Nd4 {[%clk 0:00:09]}  b2 {[%clk 0:00:13]} 43. Nxf5 {[%clk 0:00:09]}  Ng8 {[%clk 0:00:11]} 44. Nxh6 {[%clk 0:00:06]}  Nxh6 {[%clk 0:00:11]} 45. g8=Q {[%clk 0:00:07]}  Nxg8 {[%clk 0:00:11]} 0-1


[Site "https://www.chess.com"]

[Event "Titled Tuesday Blitz July 05 Late 2022"]
[White "Papp, Levente"]
[Black "Sanchez Alvares, Kelvin Antonio"]
[WhiteFideId "751243"]
[BlackFideId "3906680"]
[WhiteElo "2308"]
[BlackElo "2193"]
[Result "1-0"]
[Round "11"]
[TimeControl "180+1"]
[Date "2022.07.05"]
[WhiteClock "0:00:16"]
[BlackClock "0:00:59"]

1. c4 {[%clk 0:03:00]}  e5 {[%clk 0:02:58]} 2. g3 {[%clk 0:03:00]}  Nf6 {[%clk 0:02:57]} 3. Bg2 {[%clk 0:03:00]}  d5 {[%clk 0:02:56]} 4. cxd5 {[%clk 0:03:01]}  Nxd5 {[%clk 0:02:56]} 5. Nf3 {[%clk 0:03:02]}  Nc6 {[%clk 0:02:56]} 6. O-O {[%clk 0:03:02]}  Nb6 {[%clk 0:02:53]} 7. b3 {[%clk 0:03:02]}  Bd6 {[%clk 0:02:52]} 8. Bb2 {[%clk 0:03:01]}  O-O {[%clk 0:02:51]} 9. d4 {[%clk 0:03:01]}  exd4 {[%clk 0:02:46]} 10. Nxd4 {[%clk 0:03:02]}  Nxd4 {[%clk 0:02:34]} 11. Qxd4 {[%clk 0:03:03]}  f6 {[%clk 0:02:34]} 12. Nc3 {[%clk 0:02:54]}  Be5 {[%clk 0:02:32]} 13. Qxd8 {[%clk 0:02:18]}  Rxd8 {[%clk 0:02:30]} 14. Rad1 {[%clk 0:02:19]}  Re8 {[%clk 0:02:21]} 15. f4 {[%clk 0:02:07]}  Bxc3 {[%clk 0:02:18]} 16. Bxc3 {[%clk 0:02:07]}  c6 {[%clk 0:02:18]} 17. e4 {[%clk 0:02:04]}  Bg4 {[%clk 0:02:14]} 18. Rd2 {[%clk 0:02:04]}  Rad8 {[%clk 0:02:14]} 19. Rff2 {[%clk 0:02:05]}  Rd7 {[%clk 0:01:56]} 20. h3 {[%clk 0:01:54]}  Be6 {[%clk 0:01:51]} 21. Rxd7 {[%clk 0:01:51]}  Nxd7 {[%clk 0:01:45]} 22. Rd2 {[%clk 0:01:50]}  Nb6 {[%clk 0:01:44]} 23. Kf2 {[%clk 0:01:43]}  Kf7 {[%clk 0:01:43]} 24. g4 {[%clk 0:01:36]}  g6 {[%clk 0:01:39]} 25. Bb4 {[%clk 0:01:13]}  Bc8 {[%clk 0:01:34]} 26. Bc5 {[%clk 0:01:07]}  g5 {[%clk 0:01:22]} 27. fxg5 {[%clk 0:00:50]}  fxg5 {[%clk 0:01:21]} 28. Be3 {[%clk 0:00:51]}  Kg6 {[%clk 0:01:13]} 29. Rd6+ {[%clk 0:00:49]}  Be6 {[%clk 0:01:07]} 30. e5 {[%clk 0:00:42]}  h6 {[%clk 0:01:07]} 31. Be4+ {[%clk 0:00:39]}  Kf7 {[%clk 0:01:07]} 32. Kg3 {[%clk 0:00:15]}  Bc8 {[%clk 0:01:05]} 33. Bg6+ {[%clk 0:00:15]}  Ke7 {[%clk 0:00:58]} 34. Bxe8 {[%clk 0:00:16]}  Kxe8 {[%clk 0:00:59]} 35. Bxb6 {[%clk 0:00:16]} 1-0


[Site "https://www.chess.com"]

[Event "Titled Tuesday Blitz July 05 Late 2022"]
[White "Poltorak, Sebastian"]
[Black "Storme, Isak"]
[WhiteFideId "1199498"]
[BlackFideId "1728113"]
[WhiteElo "2104"]
[BlackElo "2205"]
[Result "1-0"]
[Round "11"]
[TimeControl "180+1"]
[Date "2022.07.05"]
[WhiteClock "0:00:22"]
[BlackClock "0:00:07"]

1. d4 {[%clk 0:03:00]}  d5 {[%clk 0:02:56]} 2. c4 {[%clk 0:03:00]}  e6 {[%clk 0:02:53]} 3. Nc3 {[%clk 0:03:00]}  Nf6 {[%clk 0:02:51]} 4. cxd5 {[%clk 0:03:01]}  Nxd5 {[%clk 0:02:52]} 5. e4 {[%clk 0:03:01]}  Nxc3 {[%clk 0:02:52]} 6. bxc3 {[%clk 0:03:02]}  c5 {[%clk 0:02:52]} 7. Nf3 {[%clk 0:03:02]}  cxd4 {[%clk 0:02:52]} 8. cxd4 {[%clk 0:03:03]}  Bb4+ {[%clk 0:02:53]} 9. Bd2 {[%clk 0:03:04]}  Bxd2+ {[%clk 0:02:53]} 10. Qxd2 {[%clk 0:03:05]}  O-O {[%clk 0:02:54]} 11. Bc4 {[%clk 0:03:05]}  b6 {[%clk 0:02:54]} 12. O-O {[%clk 0:03:05]}  Bb7 {[%clk 0:02:54]} 13. Rfe1 {[%clk 0:03:06]}  Nd7 {[%clk 0:02:54]} 14. Rad1 {[%clk 0:03:05]}  Rc8 {[%clk 0:02:54]} 15. Bb3 {[%clk 0:03:05]}  h6 {[%clk 0:02:54]} 16. Qf4 {[%clk 0:02:49]}  Re8 {[%clk 0:02:47]} 17. h3 {[%clk 0:02:44]}  Qf6 {[%clk 0:02:45]} 18. Qg4 {[%clk 0:02:36]}  Qe7 {[%clk 0:02:01]} 19. d5 {[%clk 0:02:11]}  exd5 {[%clk 0:01:59]} 20. exd5 {[%clk 0:02:08]}  Qd6 {[%clk 0:01:59]} 21. Nd4 {[%clk 0:02:02]}  Nc5 {[%clk 0:01:49]} 22. Nf5 {[%clk 0:01:58]}  Qf6 {[%clk 0:01:48]} 23. d6 {[%clk 0:01:47]}  Rcd8 {[%clk 0:01:37]} 24. Bc2 {[%clk 0:01:32]}  Bc8 {[%clk 0:01:32]} 25. Ne7+ {[%clk 0:01:17]}  Kf8 {[%clk 0:01:02]} 26. Nxc8 {[%clk 0:01:17]}  Rxc8 {[%clk 0:00:44]} 27. Ba4 {[%clk 0:00:42]}  Rxe1+ {[%clk 0:00:32]} 28. Rxe1 {[%clk 0:00:41]}  Rd8 {[%clk 0:00:32]} 29. d7 {[%clk 0:00:37]}  g6 {[%clk 0:00:19]} 30. Re8+ {[%clk 0:00:36]}  Kg7 {[%clk 0:00:19]} 31. Rxd8 {[%clk 0:00:25]}  Qxd8 {[%clk 0:00:20]} 32. Qd4+ {[%clk 0:00:25]}  Kg8 {[%clk 0:00:16]} 33. Bc6 {[%clk 0:00:25]}  Ne6 {[%clk 0:00:16]} 34. Qd6 {[%clk 0:00:25]}  Qf6 {[%clk 0:00:14]} 35. Bd5 {[%clk 0:00:23]}  Qa1+ {[%clk 0:00:12]} 36. Kh2 {[%clk 0:00:23]}  Qd4 {[%clk 0:00:04]} 37. d8=Q+ {[%clk 0:00:21]}  Nxd8 {[%clk 0:00:05]} 38. Bxf7+ {[%clk 0:00:21]}  Kxf7 {[%clk 0:00:04]} 39. Qxd4 {[%clk 0:00:22]}  Ne6 {[%clk 0:00:05]} 40. Qe5 {[%clk 0:00:22]}  Ke7 {[%clk 0:00:05]} 41. h4 {[%clk 0:00:22]}  Kf7 {[%clk 0:00:06]} 42. h5 {[%clk 0:00:22]}  gxh5 {[%clk 0:00:07]} 43. Qxh5+ {[%clk 0:00:22]}  Kg7 {[%clk 0:00:07]} 44. Qe5+ {[%clk 0:00:23]}  Kf7 {[%clk 0:00:07]} 45. Qd6 {[%clk 0:00:23]}  Ng5 {[%clk 0:00:07]} 46. f4 {[%clk 0:00:22]}  Ne6 {[%clk 0:00:06]} 47. f5 {[%clk 0:00:23]}  Ng5 {[%clk 0:00:07]} 48. Qg6+ {[%clk 0:00:22]}  Ke7 {[%clk 0:00:07]} 49. Qxh6 {[%clk 0:00:22]} 1-0


[Site "https://www.chess.com"]